Cogmind - Beta 16.1 *** ADVENTURER MODE // 2026.03.06 @ 12:26:08 Player: Ms. V3-11A Result: Destroyed by 5R-O3A(R) with Subdweller Machine Gun Performance ------------- Evolutions (0) 0 Regions Visited (2) 400 Robots Destroyed (17) 85 Value Destroyed (560) 560 Prototype IDs (2) 40 Alien Tech Used (0) 0 Bonus (0) 0 TOTAL SCORE: 1085 Bonus ------- None Cogmind --------- Core Integrity 0/250 Matter 271/300 Energy 200/200 System Corruption 1% Temperature Cool (0) Movement Treading (320) Ox2 Location -10/Subcaves Parts ------- > --- POWER (1) -------- Subdweller Power Source > --- PROPULSION (2) --- Light Treads > --- UTILITY (2) ------ Improved Heat Sink High-capacity Storage Unit > --- WEAPON (2) ------- Small Laser Light Assault Rifle > --- INVENTORY (20) --- Light Ion Engine Light Treads Disposable Heat Sink Disposable Heat Sink High-capacity Storage Unit Subdweller Optics Sensor Array Riot Gun Mining Claw Peak State ------------ > --- POWER ------------ Subdweller Power Source > --- PROPULSION ------- Light Treads Light Treads > --- UTILITY ---------- Disposable Heat Sink High-capacity Storage Unit > --- WEAPON ----------- Light Assault Rifle Makeshift Shrapnel Gun > --- INVENTORY -------- Light Ion Engine Light Treads Light Treads Improved Heat Sink High-capacity Storage Unit Sensor Array Signal Interpreter Riot Gun Small Laser Mining Claw [Rating: 13] Favorites ----------- Power Subdweller Power Source Engine Subdweller Power Source Propulsion Light Treads Treads Light Treads Leg Aluminum Leg Utility High-capacity Storage Unit Device Disposable Heat Sink Storage High-capacity Storage Unit Processor Signal Interpreter Protection Light Armor Plating Weapon Light Assault Rifle Energy Gun EM Pulse Gun Ballistic Gun Light Assault Rifle Slashing Weapon Mining Claw Build | -11 -10 -10 ------- Run | Yrd Mat Sub Slots Evolved . | . . . Power . | . . . Propulsion . | . . . Utility . | . . . Weapon . | . . . Parts Attached 18 | . 8 10 Power 2 | . . 2 Engine 2 | . . 2 Core . | . . . Reactor . | . . . Propulsion 6 | . 4 2 Treads 4 | . 2 2 Leg 2 | . 2 . Wheel . | . . . Hover . | . . . Flight . | . . . Utility 6 | . 2 4 Device 3 | . . 3 Storage 1 | . 1 . Processor 1 | . . 1 Hackware . | . . . Protection 1 | . 1 . Artifact . | . . . Weapon 4 | . 2 2 Energy Gun 1 | . . 1 Energy Cannon . | . . . Ballistic Gun 2 | . 1 1 Ballistic Cannon . | . . . Launcher . | . . . Special Weapon . | . . . Impact Weapon . | . . . Slashing Weapon 1 | . 1 . Piercing Weapon . | . . . Special Melee Weapon . | . . . Unidentified Prototypes . | . . . Corrupted Parts 1 | . . 1 System Corruption 1 | . . 1 Parts Lost 8 | . . 8 Power 1 | . . 1 Propulsion 3 | . . 3 Utility 2 | . . 2 Weapon 2 | . . 2 Highest Loss Streak 3 | . . 3 To Critical Strikes . | . . . Average Backups 8 | 5 7 9 Power 1 | 1 1 1 Propulsion 2 | 3 2 1 Utility 3 | . 1 3 Weapon 2 | 1 1 2 Tool/Special . | . . . Unused Backups 7 | . 1 6 Power . | . . . Propulsion 2 | . 1 1 Utility 4 | . . 4 Weapon 1 | . . 1 Tool/Special . | . . . Average Slot Usage (%) 96 | . 90 99 Engine 13 | . 14 13 Treads 20 | . 2 27 Leg 7 | . 25 . Device 7 | . . 10 Storage 14 | . 14 14 Protection 3 | . 5 2 Energy Gun 7 | . 19 2 Ballistic Gun 15 | . 6 19 Slashing Weapon 4 | . 1 5 Peak Build Rating 13 | 6 8 13 Average Rating 10 | 6 6 11 On Entrance 6 | 6 6 8 Avg Prop Armor Cover (%) . | . . . Naked Turns . | . . . Heaviest Build 52 | 13 51 52 Greatest Support 40 | 20 40 40 Greatest Overweight (x) 5 | . 5 1 Average Overweight (x) 1 | . 1 1 Largest Inventory Capacity 20 | 8 20 20 Average Capacity 19 | 8 18 20 Most Carried 12 | 5 12 12 Average Carried 8 | 4 7 9 Final Capacity 20 | 8 20 20 Final Carried 9 | 4 9 9 Class Distribution -------------------- 100% | Mutant Dominant Class ---------------- Mutant | -10/Materials Mutant | -10/Subcaves Resources | -11 -10 -10 ----------- Run | Yrd Mat Sub Matter Collected 533 | 200 45 288 Remotely . | . . . Salvage Created 631 | . 305 326 Parts 36 | . 16 20 Haulers Intercepted . | . . . Recyclers Shooed . | . . . Parts Field Recycled . | . . . Retrieved Matter . | . . . Parts Self-Destructed 22 | . . 22 Prevented . | . . . Parts Restored . | . . . Kills | -11 -10 -10 ------- Run | Yrd Mat Sub Combat Hostiles Destroyed 14 | . 6 8 Guns 14 | . 6 8 Classes Destroyed 6 | . 3 3 Recycler 1 | . 1 . Turret 2 | . . 2 Swarmer 3 | . 3 . Grunt 5 | . 3 2 Sentry 1 | . . 1 Subdweller 5 | . . 5 Best Kill Streak 4 | . 4 2 Combat Bots Only 4 | . 4 2 Max Kills in Single Turn 2 | . 2 1 Gunslinging 1 | . 1 . Exploded . | . . . Melee . | . . . Uniques/NPCs Destroyed . | . . . Combat | -11 -10 -10 -------- Run | Yrd Mat Sub Hostile Shots Fired 163 | . 39 124 Missed 63 | . 13 50 Hits 100 | . 26 74 Projectile 100 | . 26 74 AOE 6 | . . 6 Critical Strikes 4 | . 3 1 Damage Taken 1354 | . 239 1115 Core 268 | . 15 253 Absorbed by Shields . | . . . Ignored by Resistances 371 | . 73 298 Core Remaining (%) 100 | 100 . . Volleys Fired 67 | . 21 46 Largest 2 | . 2 2 Hottest 60 | . 60 60 Shots Fired 133 | . 42 91 Gun 133 | . 42 91 Cannon . | . . . Launcher . | . . . Special . | . . . Kinetic 84 | . 21 63 Thermal 24 | . . 24 Explosive . | . . . Electromagnetic 25 | . 21 4 Robot Hit Streak 43 | . 12 43 Robot Miss Streak 2 | . 2 2 Penetration Max . | . . . Secondary Targets 3 | . 2 1 Max Gunslinging Chain 1 | . 1 1 Shots Hit Robots 114 | . 32 82 Core Hits 46 | . 13 33 Critical Kills . | . . . Critical Parts Destroyed . | . . . Critical Strikes . | . . . Melee Attacks 14 | . 2 12 Impact . | . . . Slashing 14 | . 2 12 Piercing . | . . . Sneak Attacks . | . . . Combat Hostiles . | . . . Follow-up Attacks . | . . . Damage Inflicted 1363 | . 330 1033 Guns 1363 | . 330 1033 Cannons . | . . . Explosions . | . . . Melee . | . . . Ramming . | . . . Kinetic 890 | . 129 761 Thermal 239 | . . 239 Explosive . | . . . Electromagnetic 234 | . 201 33 Impact . | . . . Slashing . | . . . Piercing . | . . . Highest Corruption 1 | . . 1 Average Corruption 1 | . . 1 Corruption Purged . | . . . Corruption Blocked . | . . . Overload Shots . | . . . Overflow Damage . | . . . Projectiles . | . . . Explosions . | . . . Melee . | . . . Knockbacks . | . . . Impact . | . . . Kinetic . | . . . Secondary . | . . . Self-Inflicted Damage . | . . . Shots . | . . . Rammed . | . . . Targets Rammed . | . . . Kicked . | . . . Crushed . | . . . Highest Temperature 143 | . 143 12 Average Temperature 53 | . 54 5 Received Heat Transfer 468 | . 144 324 Siege Activations . | . . . Martial Activations . | . . . Shielding Activations . | . . . Robots Disrupted . | . . . Combat Hostiles . | . . . Robots Corrupted . | . . . Combat Hostiles . | . . . Parts Fried . | . . . Impact Corruptions . | . . . Robots Melted . | . . . Combat Hostiles . | . . . Parts Melted . | . . . Heat Transferred 550 | . . 550 Parts Sabotaged . | . . . Parts Stolen . | . . . Parts Stripped . | . . . Power Chain Reactions . | . . . Alert | -11 -10 -10 ------- Run | Yrd Mat Sub Maximum Alert Level . | . . . Low Security (%) 100 | 100 100 . Level 1 . | . . . Level 2 . | . . . Level 3 . | . . . Level 4 . | . . . Level 5 . | . . . High Security . | . . . Max Security . | . . . Peak Influence 135 | . 135 . Initial . | . . . Average 22 | . 22 . Influence Increases 369 | . 229 140 Destroy 0b10 Robot/C 220 | . 120 100 Destroy 0b10 Robot/NC 5 | . 5 . Destroy Leader 40 | . 30 10 Successful Hack 4 | . 4 . Disable Machine 9 | . 9 . Destroy Structure 1 | . 1 . Partial Spotted 15 | . 15 . Lose Combat Pursuer 75 | . 45 30 Influence Decreases 369 | . 130 239 Entered New Map 55 | . . 55 Time Decay 304 | . 130 174 Lost Part 10 | . . 10 Squads Dispatched 1 | . 1 . Investigation 1 | . 1 . Extermination . | . . . Reinforcement . | . . . Assault . | . . . Garrison . | . . . Intercept . | . . . Searches Triggered . | . . . Construction Impeded . | . . . Haulers Reinforced . | . . . Active Scanning Responses . | . . . Cargo Convoy Interrupts . | . . . Stealth | -11 -10 -10 --------- Run | Yrd Mat Sub Distress Signals 1 | . 1 . Communications Jammed . | . . . Distress Signals . | . . . Times Spotted 32 | . 14 18 Peak Tracking Total 4 | . 4 2 Tactical Retreats 3 | . 2 1 Traps | -11 -10 -10 ------- Run | Yrd Mat Sub Traps Triggered 5 | . 2 3 Indirectly . | . . . Trap Hack Attempts . | . . . Triggered . | . . . Disarmed . | . . . Reprogrammed . | . . . Reused . | . . . Traps Extracted . | . . . Installed . | . . . Triggered . | . . . Machines | -11 -10 -10 ---------- Run | Yrd Mat Sub Machines Disabled 1 | . 1 . Max in Single Turn 1 | . 1 . Machines Repaired . | . . . Machines Dismantled . | . . . Machines Sabotaged . | . . . Overloaded Fab Kills . | . . . Hacking | -11 -10 -10 --------- Run | Yrd Mat Sub Machines Accessed 5 | . 5 . Terminals 3 | . 3 . Fabricators . | . . . Repair Stations . | . . . Recycling Units 2 | . 2 . Scanalyzers . | . . . Garrison Access . | . . . Total Hacks 11 | . 11 . Successful 7 | . 7 . Failed 4 | . 4 . Catastrophic . | . . . Database Lockouts . | . . . Manual 7 | . 7 . Terminals 9 | . 9 . Fabricators . | . . . Repair Stations . | . . . Recycling Units 2 | . 2 . Scanalyzers . | . . . Garrison Access . | . . . Terminal Hacks 3 | . 3 . Robot Analysis 1 | . 1 . Prototype ID Bank 1 | . 1 . Zone Layout 1 | . 1 . Fabricator Hacks . | . . . Repair Station Hacks . | . . . Recycling Unit Hacks 1 | . 1 . Retrieve Components 1 | . 1 . Scanalyzer . | . . . Garrison Access Hacks . | . . . Unauthorized Hacks 3 | . 3 . Terminals 3 | . 3 . Botnet 3 | . 3 . Fabricators . | . . . Repair Stations . | . . . Recycling Units . | . . . Scanalyzers . | . . . Garrison Access . | . . . Data Cores Recovered . | . . . Used . | . . . Hacking Detections 4 | . 4 . Full Trace Events . | . . . Feedback Events . | . . . Feedback Blocked . | . . . Robot Schematics Acquired . | . . . Robots Built . | . . . Authchips . | . . . Time . | . . . Total Robot Build Rating . | . . . Part Schematics Acquired . | . . . Parts Built . | . . . Authchips . | . . . Time . | . . . Total Part Build Rating . | . . . Part Studies Acquired . | . . . Parts Repaired . | . . . Time . | . . . Parts Recycled . | . . . Recycled Matter . | . . . Retrieved Matter . | . . . Retrieved Components . | . . . Parts Scanalyzed . | . . . Part Schematics Acquired . | . . . Parts Damaged . | . . . Bothacking | -11 -10 -10 ------------ Run | Yrd Mat Sub Used RIF Installer . | . . . Robots Hacked . | . . . Non-combat . | . . . Combat . | . . . Robot Hacks Applied . | . . . Relay Couplers Released . | . . . Fabnet Peak Effective % . | . . . Robots Rewired . | . . . Allies Hacked . | . . . Hacks Repelled . | . . . Allies | -11 -10 -10 -------- Run | Yrd Mat Sub Total Allies . | . . . Largest Group . | . . . Highest-Rated Group . | . . . Highest-Rated Ally . | . . . Total Orders . | . . . Ally Attacks . | . . . Total Damage . | . . . Kills . | . . . Allies Corrupted . | . . . Allies Melted . | . . . Intel | -11 -10 -10 ------- Run | Yrd Mat Sub Active Infowar (turns) 210 | . . 210 Optics 210 | . . 210 Robot Analysis Total 1 | . 1 . Derelict Logs Recovered 1 | . . 1 Drone Launches . | . . . Drone Recoveries . | . . . Exploration | -11 -10 -10 ------------- Run | Yrd Mat Sub Turns Passed 2341 | 2 662 1677 Spaces Moved 844 | 1 226 617 Core . | . . . Treads 636 | . 19 617 Legs 208 | 1 207 . Wheels . | . . . Hover . | . . . Flight . | . . . Fastest Speed 120 | 120 120 240 Average Speed 231 | 120 208 240 Slowest Speed 470 | 120 470 240 Overloaded Moves . | . . . Propulsion Burnouts . | . . . Robots Hopped . | . . . Potential Cave-ins . | . . . Cave-ins Triggered . | . . . Exploration Rate (%) 36 | 2 48 59 Regions Visited 2 Branch Regions 1 Pre-discovered Areas . | . . . Known Exits Taken . | . . . Unknown Exits Taken 2 | 1 1 . Scrap Searched . | . . . Spaces Dug 1 | . 1 . Terrain Destroyed 1 | . 1 . Melee 1 | . 1 . Projectile . | . . . AOE . | . . . Terrain Rammed . | . . . Walls Destroyed . | . . . Machines Disabled . | . . . Actions | -11 -10 -10 --------- Run | Yrd Mat Sub Total 1081 | 2 375 704 Wait 107 | . 107 . Move 842 | . 225 617 Hop . | . . . Pick Up 16 | . 8 8 Fast Attach 5 | . 4 1 Attach 12 | . 2 10 Detach 2 | . . 2 Swap 8 | . 2 6 Drop 8 | 2 4 2 Fire 67 | . 21 46 Melee 14 | . 2 12 Ram . | . . . Kick . | . . . Crush . | . . . Escape Stasis . | . . . Rewire . | . . . Trap . | . . . Miscellaneous . | . . . Route ------- -11/Scrapyard -10/Materials (discovered 2 exits: [*Mat] / [*Sub]) -10/Subcaves (discovered 2 exits: [*Mat] / *Rec) History --------- Turn | Location | Event 3 | -11/Scrapyard | Discovered new exit (range 0) 3 | -11/Scrapyard | Entered Materials 306 | -10/Materials | Build established: Mutant 398 | -10/Materials | Discovered new exit (range 14) 648 | -10/Materials | Discovered new exit (range 7) 665 | -10/Materials | Entered Subcaves 670 | -10/Subcaves | Learned Materials stockpile data 825 | -10/Subcaves | A swath of the cavern ceiling suddenly collapsed 885 | -10/Subcaves | Shifting Twisted Machinery released Mak. Shrapnel Gun 897 | -10/Subcaves | Shifting Twisted Machinery released Riot Gun 1022 | -10/Subcaves | Discovered new exit (range 15) 1071 | -10/Subcaves | Identified exit to Recycling 2061 | -10/Subcaves | Core integrity fell below 50% 2215 | -10/Subcaves | Discovered new exit (range 11) 2310 | -10/Subcaves | Core integrity fell below 20% 2342 | -10/Subcaves | Destroyed by 5R-O3A(R) with Subdweller Machine Gun Last Messages --------------- 02223_ Acquired Sub. Optics. 02226_ Subatomizers dissect the Sub. Monowheel. 02229_ Dropped Broken Sub. Power Source. 02229_ Acquired Sub. Power Source. 02233_ Acquired Disposable Heat Sink. 02238_ Subatomizers dissect the Sub. Monowheel. 02294_ Sub. Optics destroyed. 02296_ Lgt. Treads destroyed. 02298_ Integrated Corrupted Imp. Heat Sink (+1). 02310_ 0P-4E2(R) destroyed. 02310_ Switching to secondary target: HT-KT3(R). 5R-O3A(R) emerges from concealment. 02321_ HT-KT3(R) affixes Scrap Shield Fragment to Scrap Shield. 02323_ Lgt. Treads destroyed. 02326_ HT-KT3(R) affixes Scrap Shield Fragment to Scrap Shield. RZ-ZVZ(R) emerges from concealment. 02337_ HT-KT3(R) affixes Scrap Shield Fragment to Scrap Shield. Map ----- +----------------------------------------------------+ | ?????????????????????????????????????????????????? | | ?????????????????????????????????????????????????? | | ?????????????????????????????????????????????????? | | ?????????????????????????????????????????????????? | | ?????????????????????????????????????????????????? | | ????????????????????????????# ???????????????????? | | ???????????????????????????? ???????????????????? | | ?????????????????????????### ???????????????????? | | ????????????????????????? #???????????????????? | | ????????????????????????? ????????????????????? | | ?????????????????????? ? ????????????????????? | | ??????? ????????????? ? ????????????????????? | | ?????? ??????????? ?? ????????????????????? | | ??????? ??????????? ?? ?????????????????????? | | ?????? ??##?????# ???% ?????????????????????? | | ????# ### ##### ??? ?????????????????????? | | ????# ??? ;?????????????????????? | | ????? ??## #?##??????????????????? | | ?????? #### ## #####?###??????????? | | ??????? ?# ;;;# #??????????? | | ???????? """" ### #??????????? | | ????????? " ?# #???????????? | | ?????????# #?## ###?????????? | | ????????# # ??# %R ??? | | ???????# ### ##### & ??? | | "???##?# " # # # @ #"### #??????? | | """ ??# ## "" ;##????????????? | | "" ### " " ;# #????????????? | | " # ## # # # RR ???????????? | | " " ############# ?????????? | | " " #????????????# ## #?????????? | | ##""# "<" ####??????????#########????????????? | | ##### " ## ###?????????????????????????????? | | #""" " ## ##????????????????????????????? | | "" ## #????????????????????????????? | | "" #?????????????????????????????? | | # ####### =% #?????????????????????????????? | | ##???????##* #?????????????????????????????? | | ????###???#!%## #?????????????????????????????? | | ???##"#???# ## ##?????????????????????????????? | | ??## ##### % ##??????????????????????????????? | | ??# ## ## #???????????????????????????????? | | ??# ###??????????????????????????????????? | | ??## ##????????????????????????????????????? | | ######### ##????????????????????????????????????? | | #?## #????????????????????????????????????? | | #?# ##???????????????????????????????????? | | #?## #???????????????????????????????????? | | #??# #???????????????????????????????????? | | ##?## #???????????????????????????????????? | +----------------------------------------------------+ Best States ------------- Heat Dissipation 39 Coolant Potential 50 Energy Generation 15 Energy Capacity 250 Matter Stores 300 Matter Capacity 300 Sight Range 21 Terrain Scan Density 10 Armor Coverage 150 Resistance: KI 20 Resistance: TH 20 Resistance: EX 20 Resistance: EM 20 Resistance: I 20 Resistance: S 20 Resistance: P 20 Evasion (%) 55 Recoil Reduction 2 Offensive Hacking 10 Item Schematics ----------------- None Robot Schematics ------------------ None Fabricated ------------ Nothing Repaired ---------- Nothing Studied --------- None Alien Tech Used ----------------- None Achievements -------------- None Challenges ------------ None Game ------ Seed ThunderStorageAutobeam Manual? 0 Play Time 00:12:45 Cumulative 464.5 hours Start 2026.03.06 @ 12:14:15 End 2026.03.06 @ 12:26:08 Sessions 1 Manual Loads 0 Difficulty Adventurer Special Mode None Game No. 341 Rogue 63 Adventurer 252 Explorer 26 Win Type - Total 2 Types 2/0/0/0/0/0/0/0/0/0 Lore% 83 Gallery% 70 Achievement% 49 Wizard Run 0 Options --------- Layout 2 ASCII 0 Keyboard 0 Movement Mouse Keybinds 0 Fullscreen 0 Font 16/Cog Map View 64x51 Zoom Use 0% Tactical HUD 1 Map Filters NONE Filters BRIGHTNESS(115)|SATURATION(100)|LOW_CONTRAST(0,16,30) Steam 1 RUN: 469d5665-107f-408d-a22e-424f0acca7df